Workbook

Sheet без учета счетов бюджета
A2: Управление финансов администрации ЗАТО г. Североморск
A3: Сведения исполнения бюджета по расходам
A4: за период с 01.01.2014г. по 31.12.2014г.
A5: Единица измерения: тыс. руб.
A6: Наименование показателя | B6: #Н/Д | C6: Разд. | D6: #Н/Д | E6: #Н/Д | F6: #Н/Д | G6: #Н/Д | H6: #Н/Д | I6: #Н/Д | J6: #Н/Д | K6: #Н/Д | L6: #Н/Д | M6: Утверждено первоначально | N6: Утверждено | O6: #Н/Д | P6: #Н/Д | Q6: #Н/Д | R6: #Н/Д | S6: #Н/Д | T6: #Н/Д | U6: #Н/Д | V6: #Н/Д | W6: #Н/Д | X6: #Н/Д | Y6: #Н/Д | Z6: #Н/Д | AA6: #Н/Д | AB6: #Н/Д | AC6: Исполнено | AD6: #Н/Д | AE6: #Н/Д | AF6: #Н/Д | AG6: #Н/Д | AH6: #Н/Д | AI6: #Н/Д | AJ6: #Н/Д | AK6: Пояснения
A8: ОБЩЕГОСУДАРСТВЕННЫЕ ВОПРОСЫ | B8: 000 | C8: 0100 | D8: 0000000 | E8: 000 | F8: 000 | L8: 0 | M8: =SUM(M9:M15) -> 174823.3 | N8: 192940.85 | O8: 0 | P8: 0 | Q8: 0 | R8: 0 | S8: 0 | T8: 0 | U8: 0 | V8: 0 | W8: 0 | X8: 0 | Y8: 0 | Z8: 0 | AA8: 0 | AB8: 0 | AC8: 184397.35 | AD8: 184397.4 | AE8: -184397.4 | AF8: 0 | AG8: 0.9557196012 | AH8: 0 | AI8: 0 | AJ8: 0
A9: Функционирование высшего должностного лица субъекта Российской Федерации и муниципального образования | B9: 000 | C9: 0102 | D9: 0000000 | E9: 000 | F9: 000 | L9: 0 | M9: 2129.1 | N9: 3147.4 | O9: 0 | P9: 0 | Q9: 0 | R9: 0 | S9: 0 | T9: 0 | U9: 0 | V9: 0 | W9: 0 | X9: 0 | Y9: 0 | Z9: 0 | AA9: 0 | AB9: 0 | AC9: 3116.8 | AD9: 3116.8 | AE9: -3116.8 | AF9: 0 | AG9: 0.9902776895 | AH9: 0 | AI9: 0 | AJ9: 0
A10: Функционирование законодательных (представительных) органов государственной власти и представительных органов муниципальных образований | B10: 000 | C10: 0103 | D10: 0000000 | E10: 000 | F10: 000 | L10: 0 | M10: 5566.5 | N10: 5364.5 | O10: 0 | P10: 0 | Q10: 0 | R10: 0 | S10: 0 | T10: 0 | U10: 0 | V10: 0 | W10: 0 | X10: 0 | Y10: 0 | Z10: 0 | AA10: 0 | AB10: 0 | AC10: 4778.7 | AD10: 4778.7 | AE10: -4778.7 | AF10: 0 | AG10: 0.8908006338 | AH10: 0 | AI10: 0 | AJ10: 0 | AK10: Экономия сложилась по итогам проведения конкурсных процедур, а также в связи с наличием вакантных ставок
A11: Функционирование Правительства Российской Федерации, высших исполнительных органов государственной власти субъектов Российской Федерации, местных администраций | B11: 000 | C11: 0104 | D11: 0000000 | E11: 000 | F11: 000 | L11: 0 | M11: 93236.8 | N11: 94281.1 | O11: 0 | P11: 0 | Q11: 0 | R11: 0 | S11: 0 | T11: 0 | U11: 0 | V11: 0 | W11: 0 | X11: 0 | Y11: 0 | Z11: 0 | AA11: 0 | AB11: 0 | AC11: 92279 | AD11: 92279 | AE11: -92279 | AF11: 0 | AG11: 0.9787645668 | AH11: 0 | AI11: 0 | AJ11: 0 | AK11: Экономия сложилась по итогам проведения конкурсных процедур, а также в связи с заявительным характером отдельных видов расходов
A12: Обеспечение деятельности финансовых, налоговых и таможенных органов и органов финансового (финансово-бюджетного) надзора | B12: 000 | C12: 0106 | D12: 0000000 | E12: 000 | F12: 000 | L12: 0 | M12: 2236.9 | N12: 2485.2 | O12: 0 | P12: 0 | Q12: 0 | R12: 0 | S12: 0 | T12: 0 | U12: 0 | V12: 0 | W12: 0 | X12: 0 | Y12: 0 | Z12: 0 | AA12: 0 | AB12: 0 | AC12: 2381.3 | AD12: 2381.3 | AE12: -2381.3 | AF12: 0 | AG12: 0.9581924996 | AH12: 0 | AI12: 0 | AJ12: 0
A13: Обеспечение проведения выборов и референдумов | C13: 0107 | M13: 231.8
A14: Резервные фонды | B14: 000 | C14: 0111 | D14: 0000000 | E14: 000 | F14: 000 | L14: 0 | M14: 3000 | N14: 3000 | O14: 0 | P14: 0 | Q14: 0 | R14: 0 | S14: 0 | T14: 0 | U14: 0 | V14: 0 | W14: 0 | X14: 0 | Y14: 0 | Z14: 0 | AA14: 0 | AB14: 0 | AC14: 0 | AD14: 0 | AE14: 0 | AF14: 0 | AG14: 0 | AH14: 0 | AI14: 0 | AJ14: 0 | AK14: Средства Резервного фонда в 2014 году были не востребованы
A15: Другие общегосударственные вопросы | B15: 000 | C15: 0113 | D15: 0000000 | E15: 000 | F15: 000 | L15: 0 | M15: 68422.2 | N15: 84662.7 | O15: 0 | P15: 0 | Q15: 0 | R15: 0 | S15: 0 | T15: 0 | U15: 0 | V15: 0 | W15: 0 | X15: 0 | Y15: 0 | Z15: 0 | AA15: 0 | AB15: 0 | AC15: 81841.6 | AD15: 81841.6 | AE15: -81841.6 | AF15: 0 | AG15: 0.9666783601 | AH15: 0 | AI15: 0 | AJ15: 0 | AK15: Экономия сложилась по итогам проведения конкурсных процедур, а также в связи с заявительным характером отдельных видов расходов
A16: НАЦИОНАЛЬНАЯ БЕЗОПАСНОСТЬ И ПРАВООХРАНИТЕЛЬНАЯ ДЕЯТЕЛЬНОСТЬ | B16: 000 | C16: 0300 | D16: 0000000 | E16: 000 | F16: 000 | L16: 0 | M16: =SUM(M17:M19) -> 22417.5 | N16: 17257.8 | O16: 0 | P16: 0 | Q16: 0 | R16: 0 | S16: 0 | T16: 0 | U16: 0 | V16: 0 | W16: 0 | X16: 0 | Y16: 0 | Z16: 0 | AA16: 0 | AB16: 0 | AC16: 17181.4 | AD16: 17181.4 | AE16: -17181.4 | AF16: 0 | AG16: 0.9955730163 | AH16: 0 | AI16: 0 | AJ16: 0
A17: Органы юстиции | B17: 000 | C17: 0304 | D17: 0000000 | E17: 000 | F17: 000 | L17: 0 | M17: 2784.3 | N17: 2782.8 | O17: 0 | P17: 0 | Q17: 0 | R17: 0 | S17: 0 | T17: 0 | U17: 0 | V17: 0 | W17: 0 | X17: 0 | Y17: 0 | Z17: 0 | AA17: 0 | AB17: 0 | AC17: 2742 | AD17: 2742 | AE17: -2742 | AF17: 0 | AG17: 0.985338508 | AH17: 0 | AI17: 0 | AJ17: 0
A18: Защита населения и территории от чрезвычайных ситуаций природного и техногенного характера, гражданская оборона | B18: 000 | C18: 0309 | D18: 0000000 | E18: 000 | F18: 000 | L18: 0 | M18: 13353.2 | N18: 6086.5 | O18: 0 | P18: 0 | Q18: 0 | R18: 0 | S18: 0 | T18: 0 | U18: 0 | V18: 0 | W18: 0 | X18: 0 | Y18: 0 | Z18: 0 | AA18: 0 | AB18: 0 | AC18: 6051.2 | AD18: 6051.2 | AE18: -6051.2 | AF18: 0 | AG18: 0.9942002793 | AH18: 0 | AI18: 0 | AJ18: 0 | AK18: Экономия сложилась в связи с заявительным характером отдельных видов расходов
A19: Другие вопросы в области национальной безопасности и правоохранительной деятельности | B19: 000 | C19: 0314 | D19: 0000000 | E19: 000 | F19: 000 | L19: 0 | M19: 6280 | N19: 8388.5 | O19: 0 | P19: 0 | Q19: 0 | R19: 0 | S19: 0 | T19: 0 | U19: 0 | V19: 0 | W19: 0 | X19: 0 | Y19: 0 | Z19: 0 | AA19: 0 | AB19: 0 | AC19: 8388.2 | AD19: 8388.2 | AE19: -8388.2 | AF19: 0 | AG19: 0.9999642368 | AH19: 0 | AI19: 0 | AJ19: 0
A20: НАЦИОНАЛЬНАЯ ЭКОНОМИКА | B20: 000 | C20: 0400 | D20: 0000000 | E20: 000 | F20: 000 | L20: 0 | M20: =SUM(M21:M24) -> 60885.9 | N20: 275748.1 | O20: 0 | P20: 0 | Q20: 0 | R20: 0 | S20: 0 | T20: 0 | U20: 0 | V20: 0 | W20: 0 | X20: 0 | Y20: 0 | Z20: 0 | AA20: 0 | AB20: 0 | AC20: 225446.4 | AD20: 225446.4 | AE20: -225446.4 | AF20: 0 | AG20: 0.8175809734 | AH20: 0 | AI20: 0 | AJ20: 0
A21: Транспорт | B21: 000 | C21: 0408 | D21: 0000000 | E21: 000 | F21: 000 | L21: 0 | M21: 18404.1 | N21: 12622.5 | O21: 0 | P21: 0 | Q21: 0 | R21: 0 | S21: 0 | T21: 0 | U21: 0 | V21: 0 | W21: 0 | X21: 0 | Y21: 0 | Z21: 0 | AA21: 0 | AB21: 0 | AC21: 12439.5 | AD21: 12439.5 | AE21: -12439.5 | AF21: 0 | AG21: 0.9855020796 | AH21: 0 | AI21: 0 | AJ21: 0
A22: Дорожное хозяйство (дорожные фонды) | B22: 000 | C22: 0409 | D22: 0000000 | E22: 000 | F22: 000 | L22: 0 | M22: 17090.2 | N22: 188802.2 | O22: 0 | P22: 0 | Q22: 0 | R22: 0 | S22: 0 | T22: 0 | U22: 0 | V22: 0 | W22: 0 | X22: 0 | Y22: 0 | Z22: 0 | AA22: 0 | AB22: 0 | AC22: 174830.3 | AD22: 174830.3 | AE22: -174830.3 | AF22: 0 | AG22: 0.9259971547 | AH22: 0 | AI22: 0 | AJ22: 0 | AK22: Экономия, сложилась по итогам конкурсных процедур, а также расторжением контракта из-за невыполнния подрядчиком работ
A23: Связь и информатика | B23: 000 | C23: 0410 | D23: 0000000 | E23: 000 | F23: 000 | L23: 0 | M23: 11.4 | N23: 48541.9 | O23: 0 | P23: 0 | Q23: 0 | R23: 0 | S23: 0 | T23: 0 | U23: 0 | V23: 0 | W23: 0 | X23: 0 | Y23: 0 | Z23: 0 | AA23: 0 | AB23: 0 | AC23: 12757.9 | AD23: 12757.9 | AE23: -12757.9 | AF23: 0 | AG23: 0.2628224276 | AH23: 0 | AI23: 0 | AJ23: 0 | AK23: Аукцион на ремонт помещений для МБУ «МФЦ ЗАТО г. Североморск» признан не состоявшимся
A24: Другие вопросы в области национальной экономики | B24: 000 | C24: 0412 | D24: 0000000 | E24: 000 | F24: 000 | L24: 0 | M24: 25380.2 | N24: 25781.5 | O24: 0 | P24: 0 | Q24: 0 | R24: 0 | S24: 0 | T24: 0 | U24: 0 | V24: 0 | W24: 0 | X24: 0 | Y24: 0 | Z24: 0 | AA24: 0 | AB24: 0 | AC24: 25418.7 | AD24: 25418.7 | AE24: -25418.7 | AF24: 0 | AG24: 0.985927894 | AH24: 0 | AI24: 0 | AJ24: 0 | AK24: Экономия, сложилась по итогам конкурсных процедур
A25: ЖИЛИЩНО-КОММУНАЛЬНОЕ ХОЗЯЙСТВО | B25: 000 | C25: 0500 | D25: 0000000 | E25: 000 | F25: 000 | L25: 0 | M25: =SUM(M26:M29) -> 439613.7 | N25: 398347.45 | O25: 0 | P25: 0 | Q25: 0 | R25: 0 | S25: 0 | T25: 0 | U25: 0 | V25: 0 | W25: 0 | X25: 0 | Y25: 0 | Z25: 0 | AA25: 0 | AB25: 0 | AC25: 365447.25 | AD25: 365447.3 | AE25: -365447.3 | AF25: 0 | AG25: 0.917408293 | AH25: 0 | AI25: 0 | AJ25: 0
A26: Жилищное хозяйство | B26: 000 | C26: 0501 | D26: 0000000 | E26: 000 | F26: 000 | L26: 0 | M26: 35268.3 | N26: 60872.8 | O26: 0 | P26: 0 | Q26: 0 | R26: 0 | S26: 0 | T26: 0 | U26: 0 | V26: 0 | W26: 0 | X26: 0 | Y26: 0 | Z26: 0 | AA26: 0 | AB26: 0 | AC26: 58288.7 | AD26: 58288.7 | AE26: -58288.7 | AF26: 0 | AG26: 0.9575491845 | AH26: 0 | AI26: 0 | AJ26: 0 | AK26: Экономия, сложилась по итогам конкурсных процедур
A27: Коммунальное хозяйство | B27: 000 | C27: 0502 | D27: 0000000 | E27: 000 | F27: 000 | L27: 0 | M27: 71915.7 | N27: 56058.8 | O27: 0 | P27: 0 | Q27: 0 | R27: 0 | S27: 0 | T27: 0 | U27: 0 | V27: 0 | W27: 0 | X27: 0 | Y27: 0 | Z27: 0 | AA27: 0 | AB27: 0 | AC27: 42374.8 | AD27: 42374.8 | AE27: -42374.8 | AF27: 0 | AG27: 0.755899163 | AH27: 0 | AI27: 0 | AJ27: 0 | AK27: Экономия, сложилась по итогам конкурсных процедур, а также в связи с расторжением контракта в связи с не выполнением подрядчиком обязательств
A28: Благоустройство | B28: 000 | C28: 0503 | D28: 0000000 | E28: 000 | F28: 000 | L28: 0 | M28: 193156.8 | N28: 157179.4 | O28: 0 | P28: 0 | Q28: 0 | R28: 0 | S28: 0 | T28: 0 | U28: 0 | V28: 0 | W28: 0 | X28: 0 | Y28: 0 | Z28: 0 | AA28: 0 | AB28: 0 | AC28: 142161.2 | AD28: 142161.2 | AE28: -142161.2 | AF28: 0 | AG28: 0.9044518557 | AH28: 0 | AI28: 0 | AJ28: 0 | AK28: Экономия, сложилась по итогам конкурсных процедур, а также в связи с расторжением контракта в связи с не выполнением подрядчиком обязательств
A29: Другие вопросы в области жилищно-коммунального хозяйства | B29: 000 | C29: 0505 | D29: 0000000 | E29: 000 | F29: 000 | L29: 0 | M29: 139272.9 | N29: 124236.5 | O29: 0 | P29: 0 | Q29: 0 | R29: 0 | S29: 0 | T29: 0 | U29: 0 | V29: 0 | W29: 0 | X29: 0 | Y29: 0 | Z29: 0 | AA29: 0 | AB29: 0 | AC29: 122622.6 | AD29: 122622.6 | AE29: -122622.6 | AF29: 0 | AG29: 0.9870094537 | AH29: 0 | AI29: 0 | AJ29: 0 | AK29: Экономия, сложилась по итогам конкурсных процедур, а также в связи с заявительным характером отдельных видов расходов
A30: ОХРАНА ОКРУЖАЮЩЕЙ СРЕДЫ | B30: 000 | C30: 0600 | D30: 0000000 | E30: 000 | F30: 000 | L30: 0 | M30: =M31 -> 500 | N30: 500 | O30: 0 | P30: 0 | Q30: 0 | R30: 0 | S30: 0 | T30: 0 | U30: 0 | V30: 0 | W30: 0 | X30: 0 | Y30: 0 | Z30: 0 | AA30: 0 | AB30: 0 | AC30: 497.2 | AD30: 497.2 | AE30: -497.2 | AF30: 0 | AG30: 0.9944 | AH30: 0 | AI30: 0 | AJ30: 0
A31: Другие вопросы в области охраны окружающей среды | B31: 000 | C31: 0605 | D31: 0000000 | E31: 000 | F31: 000 | L31: 0 | M31: 500 | N31: 500 | O31: 0 | P31: 0 | Q31: 0 | R31: 0 | S31: 0 | T31: 0 | U31: 0 | V31: 0 | W31: 0 | X31: 0 | Y31: 0 | Z31: 0 | AA31: 0 | AB31: 0 | AC31: 497.2 | AD31: 497.2 | AE31: -497.2 | AF31: 0 | AG31: 0.9944 | AH31: 0 | AI31: 0 | AJ31: 0 | AK31: Экономия, сложилась по итогам конкурсных процедур
A32: ОБРАЗОВАНИЕ | B32: 000 | C32: 0700 | D32: 0000000 | E32: 000 | F32: 000 | L32: 0 | M32: =SUM(M33:M36) -> 2148246.62 | N32: 2058295.8 | O32: 0 | P32: 0 | Q32: 0 | R32: 0 | S32: 0 | T32: 0 | U32: 0 | V32: 0 | W32: 0 | X32: 0 | Y32: 0 | Z32: 0 | AA32: 0 | AB32: 0 | AC32: 2011054.15 | AD32: 2011054.2 | AE32: -2011054.2 | AF32: 0 | AG32: 0.9770481969 | AH32: 0 | AI32: 0 | AJ32: 0
A33: Дошкольное образование | B33: 000 | C33: 0701 | D33: 0000000 | E33: 000 | F33: 000 | L33: 0 | M33: 990993.42 | N33: 930708.4 | O33: 0 | P33: 0 | Q33: 0 | R33: 0 | S33: 0 | T33: 0 | U33: 0 | V33: 0 | W33: 0 | X33: 0 | Y33: 0 | Z33: 0 | AA33: 0 | AB33: 0 | AC33: 890158.7 | AD33: 890158.7 | AE33: -890158.7 | AF33: 0 | AG33: 0.9564313592 | AH33: 0 | AI33: 0 | AJ33: 0 | AK33: Экономия сложилась в связи с уменьшением фактического количества детей против плановых показателей, а также не выполнению подрядчиком работ по строительству объекта
A34: Общее образование | B34: 000 | C34: 0702 | D34: 0000000 | E34: 000 | F34: 000 | L34: 0 | M34: 970721.2 | N34: 935828.3 | O34: 0 | P34: 0 | Q34: 0 | R34: 0 | S34: 0 | T34: 0 | U34: 0 | V34: 0 | W34: 0 | X34: 0 | Y34: 0 | Z34: 0 | AA34: 0 | AB34: 0 | AC34: 929438.3 | AD34: 929438.3 | AE34: -929438.3 | AF34: 0 | AG34: 0.9931718244 | AH34: 0 | AI34: 0 | AJ34: 0 | AK34: Экономия сложилась в связи с уменьшением фактического количества детей против плановых показателей, а также в связи с заявительным характером отдельных видов работ
A35: Молодежная политика и оздоровление детей | B35: 000 | C35: 0707 | D35: 0000000 | E35: 000 | F35: 000 | L35: 0 | M35: 30882.5 | N35: 29857.2 | O35: 0 | P35: 0 | Q35: 0 | R35: 0 | S35: 0 | T35: 0 | U35: 0 | V35: 0 | W35: 0 | X35: 0 | Y35: 0 | Z35: 0 | AA35: 0 | AB35: 0 | AC35: 29810.7 | AD35: 29810.7 | AE35: -29810.7 | AF35: 0 | AG35: 0.9984425867 | AH35: 0 | AI35: 0 | AJ35: 0
A36: Другие вопросы в области образования | B36: 000 | C36: 0709 | D36: 0000000 | E36: 000 | F36: 000 | L36: 0 | M36: 155649.5 | N36: 161901.9 | O36: 0 | P36: 0 | Q36: 0 | R36: 0 | S36: 0 | T36: 0 | U36: 0 | V36: 0 | W36: 0 | X36: 0 | Y36: 0 | Z36: 0 | AA36: 0 | AB36: 0 | AC36: 161646.5 | AD36: 161646.5 | AE36: -161646.5 | AF36: 0 | AG36: 0.9984225015 | AH36: 0 | AI36: 0 | AJ36: 0 | AK36: Экономия сложилась в связи с уменьшением фактического количества дето-дней против плановых показателей
A37: КУЛЬТУРА, КИНЕМАТОГРАФИЯ | B37: 000 | C37: 0800 | D37: 0000000 | E37: 000 | F37: 000 | L37: 0 | M37: =SUM(M38:M39) -> 223768.7 | N37: 228475.4 | O37: 0 | P37: 0 | Q37: 0 | R37: 0 | S37: 0 | T37: 0 | U37: 0 | V37: 0 | W37: 0 | X37: 0 | Y37: 0 | Z37: 0 | AA37: 0 | AB37: 0 | AC37: 227163.45 | AD37: 227163.5 | AE37: -227163.5 | AF37: 0 | AG37: 0.9942580252 | AH37: 0 | AI37: 0 | AJ37: 0
A38: Культура | B38: 000 | C38: 0801 | D38: 0000000 | E38: 000 | F38: 000 | L38: 0 | M38: 204142.2 | N38: 207973 | O38: 0 | P38: 0 | Q38: 0 | R38: 0 | S38: 0 | T38: 0 | U38: 0 | V38: 0 | W38: 0 | X38: 0 | Y38: 0 | Z38: 0 | AA38: 0 | AB38: 0 | AC38: 207141.1 | AD38: 207141.1 | AE38: -207141.1 | AF38: 0 | AG38: 0.9959999615 | AH38: 0 | AI38: 0 | AJ38: 0 | AK38: Экономия сложилась в связи с заявительным характером отдельных видов расходов
A39: Другие вопросы в области культуры, кинематографии | B39: 000 | C39: 0804 | D39: 0000000 | E39: 000 | F39: 000 | L39: 0 | M39: 19626.5 | N39: 20502.4 | O39: 0 | P39: 0 | Q39: 0 | R39: 0 | S39: 0 | T39: 0 | U39: 0 | V39: 0 | W39: 0 | X39: 0 | Y39: 0 | Z39: 0 | AA39: 0 | AB39: 0 | AC39: 20022.4 | AD39: 20022.4 | AE39: -20022.4 | AF39: 0 | AG39: 0.9765881068 | AH39: 0 | AI39: 0 | AJ39: 0 | AK39: Экономия сложилась в связи с заявительным характером отдельных видов расходов
A40: СОЦИАЛЬНАЯ ПОЛИТИКА | B40: 000 | C40: 1000 | D40: 0000000 | E40: 000 | F40: 000 | L40: 0 | M40: =SUM(M41:M43) -> 93277.4 | N40: 82213.1 | O40: 0 | P40: 0 | Q40: 0 | R40: 0 | S40: 0 | T40: 0 | U40: 0 | V40: 0 | W40: 0 | X40: 0 | Y40: 0 | Z40: 0 | AA40: 0 | AB40: 0 | AC40: 75009.6 | AD40: 75009.6 | AE40: -75009.6 | AF40: 0 | AG40: 0.9123801438 | AH40: 0 | AI40: 0 | AJ40: 0
A41: Пенсионное обеспечение | B41: 000 | C41: 1001 | D41: 0000000 | E41: 000 | F41: 000 | L41: 0 | M41: 700 | N41: 700 | O41: 0 | P41: 0 | Q41: 0 | R41: 0 | S41: 0 | T41: 0 | U41: 0 | V41: 0 | W41: 0 | X41: 0 | Y41: 0 | Z41: 0 | AA41: 0 | AB41: 0 | AC41: 658.4 | AD41: 658.4 | AE41: -658.4 | AF41: 0 | AG41: 0.9405714286 | AH41: 0 | AI41: 0 | AJ41: 0 | AK41: Экономия сложилась в связи с заявительным характером отдельных видов расходов
A42: Социальное обеспечение населения | B42: 000 | C42: 1003 | D42: 0000000 | E42: 000 | F42: 000 | L42: 0 | M42: 40426.1 | N42: 28909 | O42: 0 | P42: 0 | Q42: 0 | R42: 0 | S42: 0 | T42: 0 | U42: 0 | V42: 0 | W42: 0 | X42: 0 | Y42: 0 | Z42: 0 | AA42: 0 | AB42: 0 | AC42: 27484.4 | AD42: 27484.4 | AE42: -27484.4 | AF42: 0 | AG42: 0.9507212287 | AH42: 0 | AI42: 0 | AJ42: 0 | AK42: Экономия сложилась в связи с заявительным характером отдельных видов расходов
A43: Охрана семьи и детства | B43: 000 | C43: 1004 | D43: 0000000 | E43: 000 | F43: 000 | L43: 0 | M43: 52151.3 | N43: 52604.1 | O43: 0 | P43: 0 | Q43: 0 | R43: 0 | S43: 0 | T43: 0 | U43: 0 | V43: 0 | W43: 0 | X43: 0 | Y43: 0 | Z43: 0 | AA43: 0 | AB43: 0 | AC43: 46866.8 | AD43: 46866.8 | AE43: -46866.8 | AF43: 0 | AG43: 0.8909343568 | AH43: 0 | AI43: 0 | AJ43: 0 | AK43: Экономия сложилась в связи с заявительным характером отдельных видов расходов
A44: ФИЗИЧЕСКАЯ КУЛЬТУРА И СПОРТ | B44: 000 | C44: 1100 | D44: 0000000 | E44: 000 | F44: 000 | L44: 0 | M44: =M45 -> 7628.05 | N44: 4010.8 | O44: 0 | P44: 0 | Q44: 0 | R44: 0 | S44: 0 | T44: 0 | U44: 0 | V44: 0 | W44: 0 | X44: 0 | Y44: 0 | Z44: 0 | AA44: 0 | AB44: 0 | AC44: 3978.7 | AD44: 3978.7 | AE44: -3978.7 | AF44: 0 | AG44: 0.9919966092 | AH44: 0 | AI44: 0 | AJ44: 0
A45: Другие вопросы в области физической культуры и спорта | B45: 000 | C45: 1105 | D45: 0000000 | E45: 000 | F45: 000 | L45: 0 | M45: 7628.05 | N45: 4010.8 | O45: 0 | P45: 0 | Q45: 0 | R45: 0 | S45: 0 | T45: 0 | U45: 0 | V45: 0 | W45: 0 | X45: 0 | Y45: 0 | Z45: 0 | AA45: 0 | AB45: 0 | AC45: 3978.7 | AD45: 3978.7 | AE45: -3978.7 | AF45: 0 | AG45: 0.9919966092 | AH45: 0 | AI45: 0 | AJ45: 0 | AK45: Экономия, сложилась по итогам конкурсных процедур
A46: СРЕДСТВА МАССОВОЙ ИНФОРМАЦИИ | B46: 000 | C46: 1200 | D46: 0000000 | E46: 000 | F46: 000 | L46: 0 | M46: =SUM(M47:M48) -> 14441.3 | N46: 14852.8 | O46: 0 | P46: 0 | Q46: 0 | R46: 0 | S46: 0 | T46: 0 | U46: 0 | V46: 0 | W46: 0 | X46: 0 | Y46: 0 | Z46: 0 | AA46: 0 | AB46: 0 | AC46: 14852.8 | AD46: 14852.8 | AE46: -14852.8 | AF46: 0 | AG46: 1 | AH46: 0 | AI46: 0 | AJ46: 0
A47: Телевидение и радиовещание | B47: 000 | C47: 1201 | D47: 0000000 | E47: 000 | F47: 000 | L47: 0 | M47: 4682.6 | N47: 4812.6 | O47: 0 | P47: 0 | Q47: 0 | R47: 0 | S47: 0 | T47: 0 | U47: 0 | V47: 0 | W47: 0 | X47: 0 | Y47: 0 | Z47: 0 | AA47: 0 | AB47: 0 | AC47: 4812.6 | AD47: 4812.6 | AE47: -4812.6 | AF47: 0 | AG47: 1 | AH47: 0 | AI47: 0 | AJ47: 0
A48: Периодическая печать и издательства | B48: 000 | C48: 1202 | D48: 0000000 | E48: 000 | F48: 000 | L48: 0 | M48: 9758.7 | N48: 10040.2 | O48: 0 | P48: 0 | Q48: 0 | R48: 0 | S48: 0 | T48: 0 | U48: 0 | V48: 0 | W48: 0 | X48: 0 | Y48: 0 | Z48: 0 | AA48: 0 | AB48: 0 | AC48: 10040.2 | AD48: 10040.2 | AE48: -10040.2 | AF48: 0 | AG48: 1 | AH48: 0 | AI48: 0 | AJ48: 0
A49: ВСЕГО РАСХОДОВ: | L49: 0 | M49: =M8+M16+M20+M25+M30+M32+M37+M40+M44+M46 -> 3185602.47 | N49: =N8+N16+N20+N25+N30+N32+N37+N40+N44+N46 -> 3272642.1 | O49: 0 | P49: 0 | Q49: 0 | R49: 0 | S49: 0 | T49: 0 | U49: 0 | V49: 0 | W49: 0 | X49: 0 | Y49: 0 | Z49: 0 | AA49: 0 | AB49: 0 | AC49: 3125028.3 | AD49: 3125028.5 | AE49: -3125028.5 | AF49: 0 | AG49: 0.9548946414 | AH49: 0 | AI49: 0 | AJ49: 0
AD50: #Н/Д
